[Event "Esbjerg Efterår 2024 - Esbjergmesterskabet"]
[Site "Esbjerg, Denmark"]
[Date "2024.10.19"]
[Round "5.8"]
[White "Madsen, Svend"]
[Black "Paludan, Noah"]
[Result "1/2-1/2"]
[TimeControl "1.-3. 20 min + 5 sek, 4.-7. 90 min + 30 sek + 15 min efter 40 træk"]
[WhiteElo "1832"]
[BlackElo "1979"]

1. e4 {[%clk 01:30:54]} {[%emt 00:00:05]} c5 {[%clk 01:29:47]} {[%emt
00:01:13]} 2. Nf3 {[%clk 01:31:18]} {[%emt 00:00:07]} d6 {[%clk 01:29:18]}
{[%emt 00:00:57]} 3. Bc4 {[%clk 01:31:39]} {[%emt 00:00:10]} Nf6 {[%clk
01:22:23]} {[%emt 00:07:24]} 4. Qe2 {[%clk 01:31:59]} {[%emt 00:00:11]} Nc6
{[%clk 01:17:13]} {[%emt 00:05:40]} 5. O-O {[%clk 01:31:01]} {[%emt 00:01:28]}
e6 {[%clk 01:10:33]} {[%emt 00:07:10]} 6. Re1 {[%clk 01:30:43]} {[%emt
00:00:48]} Be7 {[%clk 01:10:22]} {[%emt 00:00:40]} 7. c3 {[%clk 01:23:13]}
{[%emt 00:08:01]} O-O {[%clk 01:07:09]} {[%emt 00:03:42]} 8. a4 {[%clk
01:21:37]} {[%emt 00:02:07]} a6 {[%clk 01:04:10]} {[%emt 00:03:29]} 9. Na3
{[%clk 01:20:36]} {[%emt 00:01:32]} d5 {[%clk 00:58:09]} {[%emt 00:06:31]} 10.
exd5 {[%clk 01:19:12]} {[%emt 00:01:54]} exd5 {[%clk 00:58:11]} {[%emt
00:00:27]} 11. Ba2 {[%clk 01:18:26]} {[%emt 00:01:18]} Bg4 {[%clk 00:55:24]}
{[%emt 00:03:17]} 12. h3 {[%clk 01:18:26]} {[%emt 00:00:30]} Bh5 {[%clk
00:50:33]} {[%emt 00:05:19]} 13. d3 {[%clk 01:16:11]} {[%emt 00:02:46]} h6
{[%clk 00:34:50]} {[%emt 00:16:13]} 14. Bd2 {[%clk 01:14:33]} {[%emt 00:02:08]}
Bd6 {[%clk 00:32:34]} {[%emt 00:02:46]} 15. g4 {[%clk 01:12:17]} {[%emt
00:02:45]} Nxg4 {[%clk 00:26:28]} {[%emt 00:06:37]} 16. hxg4 {[%clk 01:12:04]}
{[%emt 00:00:43]} Bxg4 {[%clk 00:26:55]} {[%emt 00:00:03]} 17. Kg2 {[%clk
01:12:17]} {[%emt 00:00:17]} Ne5 {[%clk 00:26:48]} {[%emt 00:00:37]} 18. Bxd5
{[%clk 01:11:07]} {[%emt 00:01:40]} Qf6 {[%clk 00:22:15]} {[%emt 00:05:02]} 19.
Nc2 {[%clk 01:08:39]} {[%emt 00:02:59]} Rae8 {[%clk 00:17:21]} {[%emt
00:05:25]} 20. Ne3 {[%clk 01:08:35]} {[%emt 00:00:34]} Qg6 {[%clk 00:09:54]}
{[%emt 00:07:57]} 21. Nxe5 {[%clk 01:04:23]} {[%emt 00:04:41]} Rxe5 {[%clk
00:08:02]} {[%emt 00:02:22]} 22. Qxg4 {[%clk 00:58:38]} {[%emt 00:06:15]} Rg5
{[%clk 00:08:14]} {[%emt 00:00:18]} 23. Qxg5 {[%clk 00:56:26]} {[%emt
00:02:41]} Qxg5+ {[%clk 00:08:32]} {[%emt 00:00:12]} 24. Kf1 {[%clk 00:56:49]}
{[%emt 00:00:08]} Bf4 {[%clk 00:06:39]} {[%emt 00:02:23]} 25. Bf3 {[%clk
00:54:47]} {[%emt 00:02:32]} b6 {[%clk 00:04:20]} {[%emt 00:02:50]} 26. Ke2
{[%clk 00:49:00]} {[%emt 00:06:16]} Re8 {[%clk 00:03:50]} {[%emt 00:01:00]} 27.
Kd1 {[%clk 00:48:52]} {[%emt 00:00:38]} Qd8 {[%clk 00:02:07]} {[%emt 00:02:12]}
28. Kc2 {[%clk 00:48:39]} {[%emt 00:00:43]} Bg5 {[%clk 00:00:39]} {[%emt
00:01:59]} 29. Rg1 {[%clk 00:46:46]} {[%emt 00:02:22]} Qd6 {[%clk 00:00:33]}
{[%emt 00:00:36]} 30. Rae1 {[%clk 00:45:09]} {[%emt 00:02:07]} Rd8 {[%clk
00:00:41]} {[%emt 00:00:23]} 31. Be2 {[%clk 00:44:39]} {[%emt 00:00:59]} b5
{[%clk 00:00:54]} {[%emt 00:00:18]} 32. Nf5 {[%clk 00:41:06]} {[%emt 00:04:02]}
Qf6 {[%clk 00:00:35]} {[%emt 00:00:50]} 33. f4 {[%clk 00:37:31]} {[%emt
00:04:05]} Qxf5 {[%clk 00:00:43]} {[%emt 00:00:22]} 34. fxg5 {[%clk 00:36:15]}
{[%emt 00:01:45]} c4 {[%clk 00:00:44]} {[%emt 00:00:30]} 35. Rg3 {[%clk
00:34:43]} {[%emt 00:02:01]} hxg5 {[%clk 00:00:45]} {[%emt 00:00:29]} 36. Rf1
{[%clk 00:32:05]} {[%emt 00:03:08]} cxd3+ {[%clk 00:00:51]} {[%emt 00:00:24]}
37. Bxd3 {[%clk 00:30:19]} {[%emt 00:02:16]} Qd5 {[%clk 00:01:03]} {[%emt
00:00:18]} 38. axb5 {[%clk 00:24:39]} {[%emt 00:06:10]} axb5 {[%clk 00:00:38]}
{[%emt 00:00:56]} 39. Rf5 {[%clk 00:23:54]} {[%emt 00:01:13]} Qd6 {[%clk
00:00:36]} {[%emt 00:00:32]} 40. Re3 {[%clk 00:20:30]} {[%emt 00:03:54]} b4
{[%clk 00:00:37]} {[%emt 00:00:30]} 41. Rxg5 {[%clk 00:15:27]} {[%emt
00:05:32]} Qh2 {[%clk 00:10:16]} {[%emt 00:05:50]} 42. c4 {[%clk 00:23:07]}
{[%emt 00:07:52]} Rb8 {[%clk 00:05:42]} {[%emt 00:05:02]} 43. Rgg3 {[%emt
00:04:52]} 1/2-1/2